Cogmind - Beta 13 @@@ ROGUE MODE // 2024.06.24 @ 05:28:34 Player: Feral_Cog Result: Destroyed by H-61 Shepherd with Heavy Assault Cannon Performance ------------- Evolutions (3) 1500 Regions Visited (6) 1200 Robots Destroyed (105) 525 Value Destroyed (3002) 3002 Prototype IDs (6) 120 Alien Tech Used (0) 0 Bonus (617) 617 TOTAL SCORE: 6964 Bonus ------- High Alert Combat Kills 117 Entered DSFs 500 Cogmind --------- Core Integrity 0/700 Matter 300/300 Energy 87/100 System Corruption 0% Temperature Cool (0) Movement Core (50) Location -7/DSF Parts ------- > --- POWER (1) -------- (None) > --- PROPULSION (3) --- (None) > --- UTILITY (5) ------ (None) > --- WEAPON (4) ------- (None) > --- INVENTORY (5) ---- Improved Signal Interpreter Armor Integrity Analyzer Tractor Beam Field Laser Field Laser Peak State ------------ > --- POWER ------------ Reinforced Ion Engine > --- PROPULSION ------- Aluminum Leg Carbon-fiber Leg Carbon-fiber Leg > --- UTILITY ---------- Improved Heat Sink Large Storage Unit Targeting Computer Medium Armor Plating Hacking Suite > --- WEAPON ----------- Gatling Laser Gatling Laser Gatling Laser Gatling Laser > --- INVENTORY -------- Improved Signal Interpreter Armor Integrity Analyzer Core Shielding Core Shielding Medium Armor Plating Medium Armor Plating Tractor Beam Beam Rifle Field Laser Advanced Beam Rifle Improved Grenade Launcher Great Maul [Rating: 37] Favorites ----------- Power Ion Engine Engine Ion Engine Propulsion Light Treads Treads Light Treads Leg Carbon-fiber Leg Utility Large Storage Unit Device Improved Heat Sink Storage Large Storage Unit Processor Targeting Computer Hackware Hacking Suite Protection Core Shielding Weapon Beam Cannon Energy Gun Improved Medium Laser Energy Cannon Beam Cannon Ballistic Gun Heavy Assault Rifle Ballistic Cannon Assault Cannon Launcher Grenade Launcher Slashing Weapon Scythe Build | -11 -10 -9 -9 -8 -7 -7 ------- Run | Yrd Mat Mat Min Mat Fac DSF Slots Evolved 6 | . . 2 . 2 2 . Power . | . . . . . . . Propulsion 1 | . . . . 1 . . Utility 3 | . . 2 . 1 . . Weapon 2 | . . . . . 2 . Parts Attached 87 | 6 10 16 1 41 1 12 Power 6 | 1 1 2 . 1 . 1 Engine 6 | 1 1 2 . 1 . 1 Core . | . . . . . . . Reactor . | . . . . . . . Propulsion 24 | 2 2 5 . 15 . . Treads 18 | 2 2 5 . 9 . . Leg 6 | . . . . 6 . . Wheel . | . . . . . . . Hover . | . . . . . . . Flight . | . . . . . . . Utility 26 | 1 3 5 1 11 . 5 Device 6 | . . 1 . 4 . 1 Storage 3 | 1 1 1 . . . . Processor 2 | . 1 . . . . 1 Hackware 2 | . . . . 2 . . Protection 13 | . 1 3 1 5 . 3 Artifact . | . . . . . . . Weapon 31 | 2 4 4 . 14 1 6 Energy Gun 12 | 2 . 1 . 3 1 5 Energy Cannon 5 | . 2 1 . 2 . . Ballistic Gun 6 | . . 1 . 4 . 1 Ballistic Cannon 1 | . . . . 1 . . Launcher 6 | . 2 1 . 3 . . Special Weapon . | . . . . . . . Impact Weapon . | . . . . . . . Slashing Weapon 1 | . . . . 1 . . Piercing Weapon . | . . . . . . . Special Melee Weapon . | . . . . . . . Unidentified Prototypes 1 | . . . . 1 . . Parts Lost 43 | . 3 10 . 13 . 17 Power 6 | . 1 2 . 1 . 2 Propulsion 10 | . 1 1 . 5 . 3 Utility 14 | . 1 3 . 3 . 7 Weapon 13 | . . 4 . 4 . 5 Highest Loss Streak 15 | . 3 3 . 6 . 15 To Critical Strikes . | . . . . . . . Average Slot Usage (%) 93 | . 95 97 100 91 84 71 Engine 10 | . 13 10 11 8 7 2 Treads 19 | . 27 22 22 16 . . Leg 3 | . . . . 6 23 15 Device 4 | . . 4 . 6 . 5 Storage 14 | . 13 15 22 15 7 6 Processor 1 | . 1 6 . . . 5 Hackware 2 | . . . . 5 15 4 Protection 14 | . 9 17 22 14 7 6 Energy Gun 5 | . 6 1 11 5 15 20 Energy Cannon 7 | . 18 4 . 5 . . Ballistic Gun 3 | . . 5 . 3 7 2 Launcher 3 | . 3 9 11 1 . . Naked Turns 8 | . . . . . . 8 Heaviest Build 54 | 14 32 38 42 48 45 54 Greatest Support 62 | 40 40 40 40 62 40 40 Greatest Overweight (x) 12 | . 1 1 1 11 1 12 Average Overweight (x) . | . . . 1 . 1 1 Largest Inventory Capacity 15 | 8 15 15 15 15 15 15 Average Capacity 14 | 7 14 15 15 15 15 14 Most Carried 15 | 5 12 10 7 15 12 14 Average Carried 9 | 1 7 7 6 11 12 11 Final Capacity 15 | 8 15 15 15 15 15 5 Final Carried 13 | 2 9 6 7 13 12 5 Class Distribution -------------------- 78% | Mutant 14% | Hacker-Mutant 3% | Scavenger-Mutant Dominant Class ---------------- Mutant | -10/Materials Mutant | -9/Materials Mutant | -9/Mines Mutant | -8/Materials Mutant | -7/Factory Gunner | -7/DSF Resources | -11 -10 -9 -9 -8 -7 -7 ----------- Run | Yrd Mat Mat Min Mat Fac DSF Matter Collected 1790 | 260 63 600 . 793 . 74 Remotely . | . . . . . . . Salvage Created 3362 | . 589 847 . 1689 . 237 Parts 225 | . 30 67 . 116 . 12 Haulers Intercepted 5 | . . 2 . 3 . . Recyclers Shooed 1 | . . 1 . . . . Parts Field Recycled . | . . . . . . . Retrieved Matter . | . . . . . . . Parts Self-Destructed . | . . . . . . . Prevented . | . . . . . . . Kills | -11 -10 -9 -9 -8 -7 -7 ------- Run | Yrd Mat Mat Min Mat Fac DSF Combat Hostiles Destroyed 68 | . 14 19 . 30 . 5 Melee 1 | . . . . 1 . . Guns 29 | . 3 6 . 17 . 3 Cannons 19 | . 7 3 . 9 . . AOE 17 | . 4 10 . 3 . . Classes Destroyed 15 | . 4 7 . 3 . 1 Worker 6 | . . 2 . 4 . . Builder 9 | . . 5 . 4 . . Tunneler 2 | . . 2 . . . . Hauler 5 | . . 2 . 3 . . Recycler 3 | . 1 2 . . . . Mechanic 1 | . . . . 1 . . Operator 2 | . . 1 . 1 . . Watcher 9 | . 2 3 . 4 . . Swarmer 13 | . 1 7 . 5 . . Grunt 35 | . 13 7 . 15 . . Brawler 3 | . . 1 . 2 . . Sentry 8 | . . 4 . 3 . 1 Specialist 7 | . . . . 4 . 3 Hunter 1 | . . . . . . 1 Heavy 1 | . . . . 1 . . Best Kill Streak 7 | . 3 6 . 7 . 3 Combat Bots Only 6 | . 3 4 . 6 . 3 Max Kills in Single Turn 4 | . 2 4 . 2 . 1 Gunslinging . | . . . . . . . Exploded 2 | . 2 2 . 1 . . Melee 1 | . . . . 1 . . Uniques/NPCs Destroyed . | . . . . . . . Combat | -11 -10 -9 -9 -8 -7 -7 -------- Run | Yrd Mat Mat Min Mat Fac DSF Hostile Shots Fired 692 | . 86 132 . 304 . 170 Missed 196 | . 25 37 . 76 . 58 Damage Taken 7560 | . 869 1163 . 3483 . 2045 Core 1347 | . 146 121 . 339 . 741 Absorbed by Shields . | . . . . . . . Redirected to Shielding 213 | . 52 9 . 114 . 38 Core Remaining (%) 62 | 100 41 . 69 38 . . Volleys Fired 237 | . 46 65 . 115 . 11 Largest 4 | . 2 2 . 2 . 4 Hottest 320 | . 120 80 . 131 . 320 Shots Fired 445 | . 90 106 . 220 . 29 Gun 206 | . 22 45 . 110 . 29 Cannon 180 | . 58 25 . 97 . . Launcher 59 | . 10 36 . 13 . . Special . | . . . . . . . Kinetic 96 | . . 35 . 60 . 1 Thermal 241 | . 69 35 . 109 . 28 Explosive 59 | . 10 36 . 13 . . Electromagnetic 49 | . 11 . . 38 . . Robot Hit Streak 24 | . 12 8 . 14 . 24 Robot Miss Streak 6 | . 4 6 . 6 . 3 Penetration Max . | . . . . . . . Secondary Targets 6 | . . . . 5 . 1 Max Gunslinging Chain 1 | . . . . 1 . 1 Shots Hit Robots 249 | . 51 40 . 132 . 26 Core Hits 166 | . 23 51 . 78 . 14 Critical Kills . | . . . . . . . Critical Parts Destroyed . | . . . . . . . Critical Strikes 6 | . 1 1 . 2 . 2 Burn 6 | . 1 1 . 2 . 2 Melee Attacks 6 | . . . . 6 . . Impact . | . . . . . . . Slashing 6 | . . . . 6 . . Piercing . | . . . . . . . Sneak Attacks 1 | . . . . 1 . . Combat Hostiles . | . . . . . . . Follow-up Attacks . | . . . . . . . Damage Inflicted 7330 | . 1351 1861 . 3477 . 641 Guns 2434 | . 199 308 . 1286 . 641 Cannons 2057 | . 541 302 . 1214 . . Explosions 2669 | . 611 1248 . 810 . . Melee 153 | . . . . 153 . . Ramming 17 | . . 3 . 14 . . Kinetic 916 | . . 224 . 692 . . Thermal 3007 | . 628 386 . 1352 . 641 Explosive 2481 | . 611 1177 . 693 . . Electromagnetic 756 | . 112 71 . 573 . . Impact . | . . . . . . . Slashing 153 | . . . . 153 . . Piercing . | . . . . . . . Highest Corruption . | . . . . . . . Average Corruption . | . . . . . . . Corruption Purged . | . . . . . . . Corruption Blocked . | . . . . . . . Overload Shots . | . . . . . . . Overflow Damage 144 | . 21 54 . 69 . . Projectiles 73 | . 21 . . 52 . . Explosions 71 | . . 54 . 17 . . Melee . | . . . . . . . Knockbacks 2 | . . . . 2 . . Impact . | . . . . . . . Kinetic 2 | . . . . 2 . . Secondary . | . . . . . . . Self-Inflicted Damage 455 | . 185 143 . 127 . . Shots 15 | . 4 5 . 6 . . Rammed 3 | . 1 1 . 1 . . Targets Rammed 4 | . 1 1 . 2 . . Kicked 1 | . . . . 1 . . Crushed . | . . . . . . . Highest Temperature 366 | . 333 108 . 366 . 271 Average Temperature 103 | . 114 25 . 113 . 117 Received Heat Transfer 1914 | . 360 246 . 1188 . 120 Effects 7 | . 4 . . 3 . . Energy Bleed 3 | . 1 . . 2 . . Interference 3 | . 3 . . . . . Matter Decay 1 | . . . . 1 . . Siege Activations . | . . . . . . . Robots Corrupted . | . . . . . . . Combat Hostiles . | . . . . . . . Parts Fried 2 | . . . . 2 . . Impact Corruptions . | . . . . . . . Robots Melted 2 | . . . . . . 2 Combat Hostiles 2 | . . . . . . 2 Parts Melted 15 | . 1 2 . 3 . 9 Heat Transferred 6715 | . 1480 888 . 2727 . 1620 Parts Sabotaged . | . . . . . . . Parts Stolen . | . . . . . . . Parts Stripped . | . . . . . . . Power Chain Reactions 3 | . . 1 . 2 . . Alert | -11 -10 -9 -9 -8 -7 -7 ------- Run | Yrd Mat Mat Min Mat Fac DSF Peak Influence 618 | . 217 618 238 416 188 263 Initial 238 | . . 91 238 92 188 133 Average 212 | . 84 453 238 171 188 196 Maximum Alert Level 2 | . 1 2 1 2 . 1 Low Security (%) 57 | 100 90 5 . 66 100 49 Level 1 23 | . 9 13 100 28 . 50 Level 2 19 | . . 80 . 4 . . Level 3 . | . . . . . . . Level 4 . | . . . . . . . Level 5 . | . . . . . . . High Security . | . . . . . . . Max Security . | . . . . . . . Squads Dispatched 16 | . 4 2 . 8 . 2 Investigation 5 | . 2 1 . 2 . . Extermination . | . . . . . . . Reinforcement 11 | . 2 1 . 6 . 2 Assault . | . . . . . . . Garrison . | . . . . . . . Intercept . | . . . . . . . Searches Triggered . | . . . . . . . Construction Impeded . | . . . . . . . Haulers Reinforced . | . . . . . . . Active Scanning Responses . | . . . . . . . Cargo Convoy Interrupts . | . . . . . . . Stealth | -11 -10 -9 -9 -8 -7 -7 --------- Run | Yrd Mat Mat Min Mat Fac DSF Distress Signals 3 | . 1 2 . . . . Communications Jammed . | . . . . . . . Distress Signals . | . . . . . . . Times Spotted 101 | . 21 25 . 42 . 13 Peak Tracking Total 6 | . 3 4 . 6 . 4 Tactical Retreats 6 | . 1 . . . . 5 Traps | -11 -10 -9 -9 -8 -7 -7 ------- Run | Yrd Mat Mat Min Mat Fac DSF Traps Triggered 5 | . 2 . . 2 . 1 Indirectly . | . . . . . . . Trap Hack Attempts . | . . . . . . . Triggered . | . . . . . . . Disarmed . | . . . . . . . Reprogrammed . | . . . . . . . Reused . | . . . . . . . Traps Extracted . | . . . . . . . Installed . | . . . . . . . Triggered . | . . . . . . . Machines | -11 -10 -9 -9 -8 -7 -7 ---------- Run | Yrd Mat Mat Min Mat Fac DSF Machines Disabled 11 | . 2 5 . 4 . . Max in Single Turn 1 | . 1 1 . 1 . . Machines Repaired . | . . . . . . . Machines Dismantled . | . . . . . . . Machines Sabotaged . | . . . . . . . Overloaded Fab Kills . | . . . . . . . Hacking | -11 -10 -9 -9 -8 -7 -7 --------- Run | Yrd Mat Mat Min Mat Fac DSF Machines Accessed 16 | . 6 4 . 5 1 . Terminals 12 | . 5 2 . 4 1 . Fabricators . | . . . . . . . Repair Stations . | . . . . . . . Recycling Units 2 | . 1 1 . . . . Scanalyzers 2 | . . 1 . 1 . . Garrison Access . | . . . . . . . Total Hacks 38 | . 11 11 . 15 1 . Successful 22 | . 3 8 . 10 1 . Failed 16 | . 8 3 . 5 . . Catastrophic 2 | . 1 . . 1 . . Database Lockouts . | . . . . . . . Manual . | . . . . . . . Terminals 26 | . 10 3 . 12 1 . Fabricators . | . . . . . . . Repair Stations . | . . . . . . . Recycling Units 3 | . 1 2 . . . . Scanalyzers 9 | . . 6 . 3 . . Garrison Access . | . . . . . . . Terminal Hacks 13 | . 2 2 . 8 1 . Robot Analysis 1 | . . . . 1 . . Prototype ID Bank 1 | . 1 . . . . . Open DSF 1 | . . . . . 1 . Alert Level 3 | . . . . 3 . . Unreport Threat 1 | . . . . 1 . . Investigation Status 1 | . . 1 . . . . Reinforcement Status 1 | . . . . 1 . . Recall Reinforcements 2 | . . . . 2 . . Zone Layout 2 | . 1 1 . . . . Fabricator Hacks . | . . . . . . . Repair Station Hacks . | . . . . . . . Recycling Unit Hacks 2 | . 1 1 . . . . Retrieve Matter 1 | . . 1 . . . . Retrieve Components 1 | . 1 . . . . . Scanalyzer 7 | . . 5 . 2 . . Insert Component 3 | . . 2 . 1 . . Analyze 4 | . . 3 . 1 . . Garrison Access Hacks . | . . . . . . . Unauthorized Hacks . | . . . . . . . Terminals . | . . . . . . . Fabricators . | . . . . . . . Repair Stations . | . . . . . . . Recycling Units . | . . . . . . . Scanalyzers . | . . . . . . . Garrison Access . | . . . . . . . Data Cores Recovered . | . . . . . . . Used . | . . . . . . . Hacking Detections 12 | . 5 3 . 4 . . Full Trace Events 1 | . . 1 . . . . Feedback Events . | . . . . . . . Feedback Blocked . | . . . . . . . Robot Schematics Acquired . | . . . . . . . Robots Built . | . . . . . . . Authchips . | . . . . . . . Time . | . . . . . . . Total Robot Build Rating . | . . . . . . . Part Schematics Acquired 3 | . . 2 . 1 . . Parts Built . | . . . . . . . Authchips . | . . . . . . . Time . | . . . . . . . Total Part Build Rating . | . . . . . . . Parts Repaired . | . . . . . . . Time . | . . . . . . . Parts Recycled . | . . . . . . . Recycled Matter . | . . . . . . . Retrieved Matter 167 | . . 167 . . . . Retrieved Components 1 | . 1 . . . . . Parts Scanalyzed 3 | . . 2 . 1 . . Part Schematics Acquired 3 | . . 2 . 1 . . Parts Damaged 1 | . . 1 . . . . Bothacking | -11 -10 -9 -9 -8 -7 -7 ------------ Run | Yrd Mat Mat Min Mat Fac DSF Used RIF Installer . | . . . . . . . Robots Hacked . | . . . . . . . Non-combat . | . . . . . . . Combat . | . . . . . . . Robot Hacks Applied . | . . . . . . . Relay Couplers Released . | . . . . . . . Fabnet Peak Effective % . | . . . . . . . Robots Rewired . | . . . . . . . Allies Hacked . | . . . . . . . Hacks Repelled . | . . . . . . . Allies | -11 -10 -9 -9 -8 -7 -7 -------- Run | Yrd Mat Mat Min Mat Fac DSF Total Allies . | . . . . . . . Largest Group . | . . . . . . . Highest-Rated Group . | . . . . . . . Highest-Rated Ally . | . . . . . . . Total Orders . | . . . . . . . Ally Attacks . | . . . . . . . Total Damage . | . . . . . . . Kills . | . . . . . . . Allies Corrupted . | . . . . . . . Allies Melted . | . . . . . . . Intel | -11 -10 -9 -9 -8 -7 -7 ------- Run | Yrd Mat Mat Min Mat Fac DSF Robot Analysis Total 1 | . . . . 1 . . Derelict Logs Recovered . | . . . . . . . Drone Launches . | . . . . . . . Drone Recoveries . | . . . . . . . Exploration | -11 -10 -9 -9 -8 -7 -7 ------------- Run | Yrd Mat Mat Min Mat Fac DSF Turns Passed 5174 | 67 1129 1088 147 2518 11 214 Spaces Moved 2493 | 45 595 545 61 1158 6 83 Core 37 | 16 . . . 2 . 19 Treads 1999 | 29 595 545 61 769 . . Legs 457 | . . . . 387 6 64 Wheels . | . . . . . . . Hover . | . . . . . . . Flight . | . . . . . . . Fastest Speed 50 | 50 160 160 240 160 190 50 Average Speed 169 | 120 160 160 240 176 190 179 Slowest Speed 650 | 160 240 240 240 600 190 650 Overloaded Moves . | . . . . . . . Propulsion Burnouts . | . . . . . . . Robots Hopped . | . . . . . . . Cave-ins Triggered . | . . . . . . . Exploration Rate (%) 39 | 3 88 45 25 56 1 61 Regions Visited 6 Branch Regions 1 Pre-discovered Areas . | . . . . . . . Known Exits Taken 1 | . . . . . 1 . Unknown Exits Taken 5 | 1 1 1 1 1 . . Scrap Searched . | . . . . . . . Spaces Dug . | . . . . . . . Terrain Destroyed 445 | . 78 252 . 115 . . Melee . | . . . . . . . Projectile 7 | . . . . 7 . . AOE 438 | . 78 252 . 108 . . Terrain Rammed . | . . . . . . . Walls Destroyed . | . . . . . . . Machines Disabled . | . . . . . . . Actions | -11 -10 -9 -9 -8 -7 -7 --------- Run | Yrd Mat Mat Min Mat Fac DSF Total 2995 | 58 682 655 63 1407 6 124 Wait 50 | . 11 8 . 25 . 6 Move 2487 | 44 594 544 60 1157 5 83 Hop . | . . . . . . . Pick Up 82 | 8 15 15 1 35 . 8 Fast Attach 1 | . . . . 1 . . Attach 67 | 6 7 12 1 30 1 10 Detach 11 | . 1 . 1 9 . . Swap 19 | . 3 4 . 10 . 2 Drop 31 | . 4 6 . 17 . 4 Fire 237 | . 46 65 . 115 . 11 Melee 6 | . . . . 6 . . Ram . | . . . . . . . Kick 1 | . . . . 1 . . Crush 3 | . 1 1 . 1 . . Escape Stasis . | . . . . . . . Rewire . | . . . . . . . Trap . | . . . . . . . Miscellaneous . | . . . . . . . Route ------- -11/Scrapyard -10/Materials (discovered 4 exits: *Mat x2 / [*Min x2]) -9/Materials -9/Mines -8/Materials -7/Factory -7/DSF History --------- Turn | Location | Event 29 | -11/Scrapyard | Discovered new exit (range 15) 68 | -11/Scrapyard | Entered Materials 313 | -10/Materials | Build established: Mutant 351 | -10/Materials | Discovered new exit (range 14) 547 | -10/Materials | Discovered new exit (range 15) 964 | -10/Materials | Discovered new exit (range 10) 1084 | -10/Materials | Core integrity fell below 50% 1101 | -10/Materials | Discovered new exit (range 15) 1112 | -10/Materials | Lost 3 parts (1p1n1u) 1197 | -10/Materials | Entered another Materials area 1197 | -9/Materials | Evolved 2 slots: Utility x2 1478 | -9/Materials | Discovered new exit (range 10) 1860 | -9/Materials | Lost 3 parts (3u) 2226 | -9/Materials | Lost 3 parts (1p1n1w) 2285 | -9/Materials | Entered Mines 2314 | -9/Mines | Met a Derelict bent on vengeance 2371 | -9/Mines | Discovered new exit (range 9) 2381 | -9/Mines | Found a damaged Exp. Sensor Array with a note attached 2409 | -9/Mines | Found Prototype Device 2432 | -9/Mines | Entered Materials 2432 | -8/Materials | Evolved 2 slots: Propulsion x1, Utility x1 2433 | -8/Materials | Identified Exp. Sensor Array 3145 | -8/Materials | Lost 6 parts (1p3n1u1w) 4524 | -8/Materials | Build established: Hacker-Mutant 4730 | -8/Materials | Discovered new exit (range 10) 4937 | -8/Materials | Core integrity fell below 50% 4950 | -8/Materials | Entered Factory 4950 | -7/Factory | Evolved 2 slots: Weapon x2 4961 | -7/Factory | Identified exit to DSF 4961 | -7/Factory | Entered DSF 4996 | -7/DSF | Additional patrols routed to DSF 5145 | -7/DSF | Core integrity fell below 50% 5160 | -7/DSF | Core integrity fell below 20% 5175 | -7/DSF | Destroyed by H-61 Shepherd with Heavy Assault Cannon Last Messages --------------- 05126_ Targeting Computer destroyed. 05129_ Gatling Laser destroyed. 05138_ Aluminum Leg destroyed. 05143_ Penetrated by Slug. 05145_ Matter Repository disabled. 05146_ Imp. Heat Sink destroyed. 05146_ Acquired Imp. Deuterium Engine. 05146_ Penetrated by Slug. 05154_ Med. Armor Plating destroyed. 05154_ Imp. Deuterium Engine destroyed. 05156_ Slug penetrates Wall. 05157_ Acquired Field Laser. 05159_ X-62 Marksman suffers critical hit (Burn). 05165_ Penetrated by Slug. 05165_ Beam Rifle destroyed. 05167_ Dropped Lrg. Storage Unit. 05167_ Core Shielding destroyed. 05167_ Acquired 20 matter. 05168_ Slug penetrates Wall. 05175_ Penetrated by Slug. Map ----- +----------------------------------------------------+ | | | | | | | | | | | | | | | | | | | ????????????????????????????????????????????????? | | ????????????????????????????????????????????????? | | ????????????????????????????????????????????????? | | ??????????????????????????????????????##????????? | | ?????????????????????????????????????#""????????? | | ?????????????????????????????????????#"#????????? | | ???????????????????##########???????##"####?????? | | ????????????????####" !!! #########"%%""#?????? | | ???????????"##!!#!!!" !!! " #[[##"%%""#?????? | | ?????????? % %%""##"???? | | ?????????? % % ![! """""???? | | ??????????? ## #!!!### ###[[["[[## ""###???? | | ????????????????#!!?### ###[[[#[[### ###?????? | | ????????????????#???#!! ]]##########% "#??????? | | ????????????????????#!!% ]]#??####" [ #??????? | | ????????????????????#!! ]]#?## + [!!!#??????? | | ????????????????????### @ ###?#]]#####%%##??????? | | ????????????????????#!! !!###]]#?#[[=/!#??????? | | ????????????????????#!! !!+ ##?#[[=![#??????? | | ????????????????????#!! !!#####??#[[][[#??????? | | ????????????????????### ############ ###?????? | | ?????????????????????##% ###!!!# ## #?????? | | ????????????????#!!!##a a## !!# ## #?????? | | ??????????? [ #?????? | | ?????????? H =%= #?????? | | ??????????? "% #?????? | | ???????????##!!!#!!!##a a##!!!#===## #?????? | | ????????????#!??#!!!?## ###!!!#===## #?????? | | ????????????????###???# #?########## ###?????? | | ?????????????????????!! !?????????? !???????? | | ????????????????????#!! !?????????? !#??????? | | ????????????????????#!! !?????????? !#??????? | | ????????????????????### #??????????# ##??????? | | ??????????????????????= ???????????? !???????? | | ??????????????????????= ???????????? !???????? | | ?????????????????????== ???????????? #???????? | | ?????????????????????## ???????????? #???????? | | ??????????????????????# ???????????? "???????? | | ???????????????????????? ???????????????????????? | | ????????????????????????????????????????????????? | | ????????????????????????????????????????????????? | +----------------------------------------------------+ Best States ------------- Heat Dissipation 55 Energy Generation 16 Energy Capacity 515 Matter Stores 300 Matter Capacity 300 Sight Range 16 Robot Scan Range 20 Terrain Scan Density 10 Armor Coverage 300 Core Shielding 20 Power Shielding 66 Weapon Shielding 33 Evasion (%) 50 Targeting Accuracy 5 Recoil Reduction 3 Offensive Hacking 20 Item Schematics ----------------- Imp. Medium Laser | -9/Materials | Scanalyzed Imp. Assault Rifle | -9/Materials | Scanalyzed Adv. Beam Rifle | -8/Materials | Scanalyzed Robot Schematics ------------------ None Fabricated ------------ Nothing Alien Tech Used ----------------- None Achievements -------------- None Challenges ------------ None Game ------ Seed WeightEnhancedCharge Manual? 0 Play Time 01:14:15 Cumulative 19.0 hours Start 2024.05.25 @ 04:42:53 End 2024.06.24 @ 05:28:34 Sessions 5 Manual Loads 0 Difficulty Rogue Special Mode None Game No. 20 Rogue 20 Adventurer 0 Explorer 0 Win Type - Total 0 Types 0/0/0/0/0/0/0/0/0 Lore% 15 Gallery% 19 Achievement% 14 Wizard Run 0 Options --------- Layout 1 ASCII 0 Keyboard 0 Movement Mouse Keybinds 0 Fullscreen 1 Font 28/TerminusBold Map View 30x25 Zoom Use 99% Tactical HUD 1 Map Filters NONE Filters NONE Steam 1 RUN: 483466e2-00ba-4b8d-83a8-8a392da040b1